Cogmind - Beta 15 @@@ ROGUE MODE // 2025.07.19 @ 22:49:27 Player: LightKnight Result: Destroyed by Superfortress with Concept Plasma Driver Performance ------------- Evolutions (8) 4000 Regions Visited (20) 4000 Robots Destroyed (340) 1700 Value Destroyed (13942) 13942 Prototype IDs (55) 1100 Alien Tech Used (1) 200 Bonus (6176) 6176 TOTAL SCORE: 31118 Bonus ------- High Alert Combat Kills 3871 Follower Combat Kills 2666 Network Hubs Disabled 200 Registered with UFD 300 Met Optimus in HQ 500 Built Enhanced Grunts 300 Met R17 at Cetus 500 Met Optimus at Protoforge 1000 Friendly Fire -3161 Cogmind --------- Core Integrity 0/1450 Matter 80/300 Energy 100/100 System Corruption 0% Temperature Cool (12) Movement Core (50) Location -2/Protoforge Parts ------- > --- POWER (2) -------- (None) > --- PROPULSION (6) --- (None) > --- UTILITY (8) ------ Experimental Optical Array Experimental Targeting Computer Experimental Core Analyzer Improved Armor Integrity Analyzer > --- WEAPON (7) ------- (None) > --- INVENTORY (5) ---- Micro Antimatter Reactor Large Storage Unit Transdimensional Reconstructor Concept XC Strikerail Z-bomb Delivery System Peak State ------------ > --- POWER ------------ Quantum Reactor Quantum Reactor > --- PROPULSION ------- Centrium Heavy Treads Centrium Heavy Treads > --- UTILITY ---------- Cryofiber Web Advanced Heat Sink Advanced Cooling System High-capacity Storage Unit Enhanced Optical Array Experimental Targeting Computer Advanced Thermal Shield > --- WEAPON ----------- Advanced Variable Charge Gun Advanced Variable Charge Gun Advanced Variable Charge Gun Advanced Variable Charge Gun Advanced KE Penetrator Advanced KE Penetrator > --- INVENTORY -------- F-cell Engine Centrium Heavy Treads Centrium Heavy Treads Advanced Cooling System Energy Well IFF Parser Launcher Guidance Computer Precision Energy Filter Centrium Medium Armor Plating Wave Gun Proton Cannon Cooled Plasma Cannon Cooled Plasma Cannon Cooled Plasma Cannon Heavy Rocket Launcher Scatter Rocket Array DRS Beacon Botcube [Rating: 148] Favorites ----------- Power Enhanced Nuclear Core Engine Improved Ion Engine Power Core Enhanced Nuclear Core Reactor Quantum Reactor Propulsion Improved Treads Treads Improved Treads Leg Aluminum Leg Hover Unit Improved Linear Gravjet Flight Unit Experimental Surge Thruster Utility Cryofiber Web Device Cryofiber Web Storage High-capacity Storage Unit Processor Improved Targeting Computer Hackware Improved Hacking Suite Protection Centrium Medium Armor Plating Weapon Heavy Particle Gun Energy Gun Heavy Particle Gun Energy Cannon Cooled Plasma Cannon Ballistic Gun Advanced KE Penetrator Ballistic Cannon Improved Light Cannon Launcher Heavy Rocket Launcher Special Weapon CPS Tube Impact Weapon Heavy Flail Slashing Weapon Experimental Terror Saw Special Melee Weapon Datajack Build | -11 -10 -10 -9 -9 -8 -8 -8 -8 -6 -6 -6 -6 -6 -5 -4 -3 -3 -2 -2 -2 ------- Run | Yrd Mat Min Mat Min Mat Sto Rec Scr Fac Ext Cet Arc Hub Fac Fac Res Qua Res Tes Frg Slots Evolved 16 | . . . 2 . 2 . . . 4 . . . . 2 2 2 . 2 . . Power 1 | . . . . . . . . . 1 . . . . . . . . . . . Propulsion 4 | . . . 1 . . . . . 1 . . . . . . 1 . 1 . . Utility 6 | . . . . . 2 . . . 1 . . . . . 2 . . 1 . . Weapon 5 | . . . 1 . . . . . 1 . . . . 2 . 1 . . . . Parts Attached 198 | . 14 1 15 . 14 21 3 1 29 1 10 . . 9 18 30 2 4 4 22 Power 15 | . 2 . 1 . 1 . . . 4 . 3 . . . . 2 . . 2 . Engine 3 | . 2 . . . . . . . 1 . . . . . . . . . . . Core 3 | . . . 1 . 1 . . . 1 . . . . . . . . . . . Reactor 9 | . . . . . . . . . 2 . 3 . . . . 2 . . 2 . Propulsion 52 | . 3 . 6 . 4 9 . 1 6 . 3 . . . 2 7 1 3 1 6 Treads 33 | . 2 . 6 . 4 9 . 1 6 . 3 . . . 2 . . . . . Leg 2 | . 1 . . . . . . . . . . . . . . . . . . 1 Wheel . | . . . . . . . . . . . . . . . . . . . . . Hover 13 | . . . . . . . . . . . . . . . . 7 1 3 1 1 Flight 4 | . . . . . . . . . . . . . . . . . . . . 4 Utility 62 | . 4 . 1 . 5 3 1 . 7 . . . . 2 9 17 1 . . 12 Device 28 | . 1 . 1 . 3 2 1 . 3 . . . . 2 5 6 . . . 4 Storage 5 | . 2 . . . . 1 . . . . . . . . . 1 1 . . . Processor 19 | . . . . . 1 . . . 2 . . . . . 3 5 . . . 8 Hackware 5 | . . . . . . . . . 1 . . . . . . 4 . . . . Protection 5 | . 1 . . . 1 . . . 1 . . . . . 1 1 . . . . Artifact . | . . . . . . . . . . . . . . . . . . . . . Weapon 69 | . 5 1 7 . 4 9 2 . 12 1 4 . . 7 7 4 . 1 1 4 Energy Gun 27 | . 2 . 4 . 3 4 1 . 1 . . . . 4 6 2 . . . . Energy Cannon 15 | . 1 . 1 . 1 1 . . 8 1 2 . . . . . . . . . Ballistic Gun 12 | . 1 . . . . 4 . . . . . . . 2 1 1 . . . 3 Ballistic Cannon 2 | . . 1 1 . . . . . . . . . . . . . . . . . Launcher 6 | . . . 1 . . . . . 2 . . . . 1 . . . 1 1 . Special Weapon 2 | . . . . . . . . . . . 2 . . . . . . . . . Impact Weapon 1 | . . . . . . . . . . . . . . . . 1 . . . . Slashing Weapon 1 | . . . . . . . . . . . . . . . . . . . . 1 Piercing Weapon . | . . . . . . . . . . . . . . . . . . . . . Special Melee Weapon 3 | . 1 . . . . . 1 . 1 . . . . . . . . . . . Unidentified Prototypes 31 | . . . . . 1 3 1 . 5 . 1 . . 3 1 4 1 1 1 9 Parts Lost 61 | . 2 . . . 2 . . . 4 3 2 . 1 . 23 2 . . 4 18 Power 5 | . 1 . . . . . . . . . . . . . 3 . . . . 1 Propulsion 25 | . . . . . 2 . . . 2 2 1 . . . 4 1 . . 3 10 Utility 13 | . . . . . . . . . 2 . . . . . 5 1 . . . 5 Weapon 18 | . 1 . . . . . . . . 1 1 . 1 . 11 . . . 1 2 Highest Loss Streak 10 | . 1 . . . 1 . . . 3 1 2 . 1 . 9 1 . . 4 10 To Critical Strikes 2 | . . . . . . . . . . . 1 . . . 1 . . . . . Average Backups 14 | . 8 12 13 14 13 14 18 16 16 17 16 16 16 14 15 4 9 13 13 5 Power 1 | . . 1 1 1 1 1 1 1 1 1 1 1 1 1 1 1 1 1 1 . Propulsion 4 | . 2 2 4 5 4 3 7 6 5 3 2 2 2 2 1 . 3 4 3 . Utility 3 | . 2 3 3 4 4 6 5 3 2 3 4 4 4 4 5 1 3 3 2 . Weapon 4 | . 2 4 4 4 4 3 4 4 5 6 6 9 9 6 7 1 . 1 2 1 Tool/Special . | . . . . . . . . . . . . . . . . . . . . . Unused Backups 47 | . 8 . 8 . 3 1 . 4 5 . 8 . . . 3 5 . . 1 1 Power 8 | . 1 . 1 . 1 . . . 1 . 1 . . . 1 2 . . . . Propulsion 9 | . 4 . 2 . . . . . . . 1 . . . . 2 . . . . Utility 19 | . 2 . 3 . . . . 3 3 . 4 . . . 2 1 . . 1 . Weapon 10 | . 1 . 2 . 2 1 . 1 1 . 2 . . . . . . . . . Tool/Special 1 | . . . . . . . . . . . . . . . . . . . . 1 Average Slot Usage (%) 92 | . 98 100 99 100 99 99 100 99 98 99 92 86 86 87 86 51 72 75 69 54 Engine 1 | . 13 14 . . . . . . . . . . . . . . . . . . Core 4 | . . . 10 11 9 9 9 9 2 . . . . . . . . . . . Reactor 4 | . . . . . . . . . 10 13 13 13 13 11 9 6 9 8 7 4 Treads 21 | . 18 28 33 33 27 27 27 27 25 25 19 13 13 11 9 . . . . . Hover 1 | . . . . . . . . . . . . . . . . 12 23 26 23 10 Device 13 | . 6 14 11 11 13 12 18 18 14 13 13 13 13 14 20 6 4 10 13 5 Storage 7 | . 14 14 11 11 9 9 9 9 6 6 6 6 6 5 4 . 3 4 4 3 Processor 6 | . . . . . 9 9 9 9 7 6 6 6 6 5 7 7 9 8 8 12 Hackware 1 | . . . . . . . . . 1 6 6 6 6 2 . 8 9 8 8 4 Protection 1 | . 6 . . . 3 5 . . 1 . . . . . 2 1 4 1 . . Energy Gun 13 | . 7 2 14 22 23 16 22 20 12 . . . . 22 20 1 . . . . Energy Cannon 6 | . 13 14 10 11 3 . . . 13 26 25 26 26 . . 1 1 2 . . Ballistic Gun 1 | . 7 . . . . 9 . . . . . . . 10 8 1 . . . . Ballistic Cannon 1 | . . 11 7 . . . . . . . . . . . . . . . . . Special Melee Weapon 1 | . . . . . . . 4 6 . . . . . . . . . . . . Peak Build Rating 148 | . 11 12 19 19 30 39 40 41 77 77 112 112 112 136 148 105 103 119 124 147 Average Rating 57 | . 9 11 18 19 26 34 37 37 64 75 96 112 111 134 135 69 94 113 106 108 On Entrance 59 | 6 6 11 12 19 19 30 39 36 41 77 75 112 112 106 135 2 100 97 116 106 Naked Turns 13 | . . . . . . . . . . . . . . . 13 . . . . . Heaviest Build 126 | 12 33 34 40 39 50 58 58 60 98 98 114 114 114 121 126 42 55 52 52 65 Greatest Support 160 | 20 40 40 60 60 60 69 69 69 103 103 160 160 160 160 160 55 54 58 63 63 Greatest Overweight (x) 7 | . . . . . . . . . 1 1 1 . . . . 1 1 . 1 7 Average Overweight (x) . | . . . . . . . . . . . . . . . . . . . . . Largest Inventory Capacity 20 | . 15 15 15 15 15 20 20 20 20 20 20 20 20 20 20 5 15 15 15 15 Average Capacity 17 | . 10 15 15 15 15 15 20 20 20 20 20 20 20 20 19 5 14 15 15 14 Most Carried 20 | . 12 14 15 15 15 20 20 20 20 20 20 20 20 19 20 5 15 15 15 15 Average Carried 16 | . 8 13 14 15 14 15 19 18 18 19 19 20 20 18 18 4 10 14 14 12 Final Capacity 20 | 8 15 15 15 15 15 20 20 20 20 20 20 20 20 20 5 5 15 15 15 15 Final Carried 20 | 6 11 14 15 15 15 20 19 20 20 18 20 20 20 19 5 5 15 15 11 15 Class Distribution -------------------- 18% | Gunner 17% | Commander-Mutant 15% | Commander-Gunner 12% | Scavenger-Gunner 10% | Scavenger-Executioner 9% | Mutant 5% | Hacker-Scout 4% | Commander-Tank Dominant Class ---------------- Mutant | -10/Materials Mutant | -10/Mines Scavenger-Gunner | -9/Materials Gunner | -9/Mines Scavenger-Gunner | -8/Materials Scavenger-Gunner | -8/Storage Commander-Mutant | -8/Recycling Commander-Mutant | -8/Scraptown Gunner | -6/Factory Commander-Gunner | -6/Extension Commander-Tank | -6/Cetus Commander-Tank | -6/Archives Commander-Tank | -6/Hub_04(d) Scavenger-Executioner | -5/Factory Scavenger-Executioner | -4/Factory Hacker-Mutant | -3/Research Hacker-Scout | -3/Quarantine Hacker-Scout | -2/Research Hacker-Scout | -2/Testing Scavenger-Mutant | -2/Protoforge Resources | -11 -10 -10 -9 -9 -8 -8 -8 -8 -6 -6 -6 -6 -6 -5 -4 -3 -3 -2 -2 -2 ----------- Run | Yrd Mat Min Mat Min Mat Sto Rec Scr Fac Ext Cet Arc Hub Fac Fac Res Qua Res Tes Frg Matter Collected 6972 | 200 184 54 464 . 148 509 60 30 329 182 127 . 13 441 800 531 . 42 70 2788 Remotely . | . . . . . . . . . . . . . . . . . . . . . Salvage Created 13526 | . 672 98 1653 31 718 1163 431 . 2063 1148 342 151 864 1358 2451 191 . 83 . 109 Parts 646 | . 31 9 100 2 29 71 21 . 94 53 21 8 47 68 87 5 . . . . Haulers Intercepted 14 | . 2 . 6 . . 5 . . 1 . . . . . . . . . . . Recyclers Shooed 8 | . 1 . 3 . . 1 . . . 1 . . . 1 . 1 . . . . Parts Field Recycled . | . . . . . . . . . . . . . . . . . . . . . Retrieved Matter . | . . . . . . . . . . . . . . . . . . . . . Parts Self-Destructed . | . . . . . . . . . . . . . . . . . . . . . Prevented . | . . . . . . . . . . . . . . . . . . . . . Kills | -11 -10 -10 -9 -9 -8 -8 -8 -8 -6 -6 -6 -6 -6 -5 -4 -3 -3 -2 -2 -2 ------- Run | Yrd Mat Min Mat Min Mat Sto Rec Scr Fac Ext Cet Arc Hub Fac Fac Res Qua Res Tes Frg Combat Hostiles Destroyed 256 | . 14 4 36 1 16 14 7 . 33 19 4 2 1 26 44 5 . . . 30 Melee 1 | . . . . . . . . . . . . . . . . 1 . . . . Guns 103 | . 2 . 8 1 13 12 7 . 14 . . . . 21 23 1 . . . 1 Cannons 70 | . 10 4 25 . 2 . . . 10 12 4 2 1 . . . . . . . AOE 64 | . 2 . 3 . . . . . 3 4 . . . 4 19 . . . . 29 Classes Destroyed 25 | . 8 1 2 . 1 1 1 . 2 . . . . 1 3 . . . . 5 Worker 10 | . 1 . 3 . 1 . . . 1 . . . 3 . 1 . . . . . Builder 6 | . . . . . . . . . 1 2 . . . 2 1 . . . . . Tunneler 1 | . . . . . . 1 . . . . . . . . . . . . . . Hauler 16 | . 2 . 6 . . 5 . . 1 . . . . . . . . . . 2 Recycler 8 | . 1 . . . 1 2 1 . 1 . . . . 1 1 . . . . . Mechanic 1 | . . . 1 . . . . . . . . . . . . . . . . . Operator 6 | . 1 . . . . 3 . . . . . . 1 . 1 . . . . . Drone 5 | . . . . . . . . . . . . . . . . . . . . 5 Watcher 21 | . 1 . 4 . 1 1 . . 1 1 1 . 1 2 4 . . 2 . 2 Swarmer 61 | . 6 3 8 . 4 2 1 . 8 1 . . . 10 9 4 . . . 5 Saboteur 2 | . . . . . . . . . . . . . . . . . . . . 2 Grunt 90 | . 6 . 16 1 7 6 . . 15 9 . . . 7 18 . . . . 5 Brawler 10 | . . . 2 . 1 . . . . 1 . . . 1 1 . . . . 4 Duelist 3 | . . . . . . . . . . . . . . . 2 . . . . 1 Protector 2 | . . . . . . . . . . . . . . . 1 . . . . 1 Sentry 43 | . . 1 10 . 3 6 4 . 5 4 . 2 1 2 5 . . . . . Demolisher 1 | . . . . . . . . . . . . . . 1 . . . . . . Hunter 19 | . . . . . 1 . 1 . 3 2 . . . 4 6 1 . . . 1 Programmer 5 | . . . . . . . 1 . 2 . . . . 1 1 . . . . . Behemoth 1 | . . . . . . . . . . . . . . . 1 . . . . . Cetus Guard 4 | . . . . . . . . . . . 4 . . . . . . . . . Enhanced Grunt 4 | . . . . . . . . . . . . . 4 . . . . . . . Hotshot 3 | . . . . . . . . . . . . . . . . . . . . 3 Striker 1 | . . . . . . . . . . . . . . . . . . . . 1 Executioner 2 | . . . . . . . . . . . . . . . . . . . . 2 Subdweller 2 | . 2 . . . . . . . . . . . . . . . . . . . Elite 1 | . . . . . . . . . . . . . . . . . . . . 1 Scrapoid 6 | . . . . . . . . . 1 . . . . . 3 . . . . 2 Thug 4 | . . . . . . . . . . 2 . . 2 . . . . . . . Savage 1 | . . . . . . . . . . . . . 1 . . . . . . . Guerrilla 2 | . . . . . . . . . . . . . 2 . . . . . . . Best Kill Streak 22 | . 7 2 4 1 4 5 3 . 7 7 4 2 2 6 15 4 . 2 . 22 Combat Bots Only 21 | . 6 2 4 1 4 3 3 . 7 6 3 2 1 5 10 4 . . . 21 Max Kills in Single Turn 6 | . 1 1 3 1 1 2 1 . 2 2 1 1 6 5 6 1 . 1 . 6 Gunslinging 1 | . . . . . . . . . . . . . . 1 1 . . . . . Exploded 5 | . 1 . 3 . . . . . 2 2 . . . 4 4 . . . . 5 Melee 1 | . . . . . . . . . . . . . . . . 1 . . . . Uniques/NPCs Destroyed 1 | . . . . . . . . . . . 1 . . . . . . . . . A7 (-6/Cetus) Combat | -11 -10 -10 -9 -9 -8 -8 -8 -8 -6 -6 -6 -6 -6 -5 -4 -3 -3 -2 -2 -2 -------- Run | Yrd Mat Min Mat Min Mat Sto Rec Scr Fac Ext Cet Arc Hub Fac Fac Res Qua Res Tes Frg Hostile Shots Fired 1287 | . 77 10 94 21 50 42 22 . 137 117 25 2 18 78 357 95 22 10 4 106 Missed 448 | . 26 3 30 10 13 12 2 . 52 45 12 . 7 27 114 46 10 4 1 34 Hits 839 | . 51 7 64 11 37 30 20 . 85 72 13 2 11 51 243 49 12 6 3 72 Melee 7 | . . . . . 1 . . . . . . . . . 5 . . . . 1 Projectile 832 | . 51 7 64 11 36 30 20 . 85 72 13 2 11 51 238 49 12 6 3 71 AOE 5 | . . . . . . . . . . . . . . 2 . . . . 2 1 Critical Strikes 46 | . 2 . 1 . 6 2 1 . 1 3 4 . 3 3 16 1 . 1 . 2 Part Disruptions 3 | . . . . . . . 1 . . . . . . . . . . 1 . 1 Damage Taken 16684 | . 568 50 751 112 415 389 290 . 1388 888 416 48 411 1004 5396 1021 243 197 192 2905 Core 3369 | . 127 . 109 13 39 53 61 . 36 138 8 . . 114 717 607 37 . . 1310 Absorbed by Shields 453 | . . . . . 116 52 . . . 190 95 . . . . . . . . . Reduced by Siege Mode 11 | . . . . . . . . . . . . . . . 11 . . . . . Regen/Repaired (Parts) 153 | . 85 . 68 . . . . . . . . . . . . . . . . . Core Remaining (%) 67 | 100 . 49 . 69 . . . 72 . . . . 78 88 37 . 45 . . . Volleys Fired 626 | . 60 9 90 9 40 55 11 . 62 33 15 2 8 35 90 36 15 3 . 53 Largest 6 | . 2 2 3 3 3 3 3 . 4 4 4 4 4 6 6 2 1 1 . 2 Hottest 436 | . 100 100 189 189 189 177 171 . 316 250 140 140 140 390 436 129 105 35 . 105 Shots Fired 1744 | . 120 17 257 20 110 163 32 . 237 124 47 8 28 182 288 39 15 3 . 54 Gun 1091 | . 60 3 101 11 97 163 32 . 160 . . . . 181 261 11 . . . 11 Cannon 587 | . 60 14 155 9 13 . . . 75 121 43 8 28 . . 28 15 3 . 15 Launcher 62 | . . . 1 . . . . . 2 3 . . . 1 27 . . . . 28 Special 4 | . . . . . . . . . . . 4 . . . . . . . . . Kinetic 366 | . 42 6 66 . . 79 . . . . . . . 64 90 8 . . . 11 Thermal 1237 | . 60 8 190 20 110 84 32 . 231 91 43 8 28 117 151 31 15 3 . 15 Explosive 62 | . . . 1 . . . . . 2 3 . . . 1 27 . . . . 28 Electromagnetic 75 | . 18 3 . . . . . . 4 30 . . . . 20 . . . . . Robot Hit Streak 31 | . 12 7 12 3 13 17 24 . 20 11 15 7 12 25 31 3 . . . 6 Robot Miss Streak 6 | . 5 2 5 4 5 5 1 . 3 6 3 . 2 4 4 3 . . . 6 Penetration Max 1 | . . . . . . . . . . . . . . 1 1 . . . . . Secondary Targets 22 | . . . . . 4 1 1 . 2 . . . . 7 7 . . . . . Max Gunslinging Chain 1 | . . . . . 1 1 1 . 1 . . . . 1 1 . . . . . Shots Hit Robots 1059 | . 73 9 137 9 72 118 42 1 154 71 33 6 14 107 177 9 . 5 . 22 Core Hits 660 | . 28 5 65 7 47 57 10 . 74 39 14 4 16 69 165 3 . . . 57 Critical Kills 6 | . . . . . . . . . 1 3 . . . . 2 . . . . . Critical Parts Destroyed 12 | . . . . . . . . . . . . . . 6 5 1 . . . . Critical Strikes 51 | . . . 5 . 8 4 2 . 11 3 . . . 6 11 1 . . . . Burn 30 | . . . 3 . 8 4 2 . 10 . . . . . 3 . . . . . Meltdown 4 | . . . . . . . . . 1 3 . . . . . . . . . . Destroy 14 | . . . . . . . . . . . . . . 6 8 . . . . . Blast 2 | . . . 2 . . . . . . . . . . . . . . . . . Smash 1 | . . . . . . . . . . . . . . . . 1 . . . . Melee Attacks 80 | . . . . . . . 32 1 1 . . . . . . 12 16 12 6 . Impact 46 | . . . . . . . . . . . . . . . . 12 16 12 6 . Slashing . | . . . . . . . . . . . . . . . . . . . . . Piercing . | . . . . . . . . . . . . . . . . . . . . . Sneak Attacks 23 | . . . . . . . 20 1 1 . . . . . . . . 1 . . Combat Hostiles 1 | . . . . . . . . . . . . . . . . . . 1 . . Follow-up Attacks . | . . . . . . . . . . . . . . . . . . . . . Damage Inflicted 45971 | . 1183 148 2924 161 1195 2084 456 . 3881 3117 997 242 1434 4463 11137 539 . 401 . 11609 Guns 15606 | . 354 21 759 117 976 2061 435 . 2110 . . . . 3304 5122 196 . . . 151 Cannons 8930 | . 674 127 1973 44 198 . . . 1485 2559 997 242 492 . . . . . . 139 Explosions 20536 | . 150 . 143 . . . . . 262 558 . . 930 1159 6015 . . . . 11319 Melee 678 | . . . . . . . . . . . . . . . . 277 . 401 . . Ramming 221 | . 5 . 49 . 21 23 21 . 24 . . . 12 . . 66 . . . . Kinetic 5162 | . 209 56 834 . . 964 . . . . . . . 920 1926 102 . . . 151 Thermal 19966 | . 824 71 1898 161 1174 1097 435 . 3531 1890 997 242 513 2384 4516 94 . . . 139 Explosive 17828 | . . . 132 . . . . . 262 558 . . . 1159 4398 . . . . 11319 Electromagnetic 2116 | . 145 21 11 . . . . . 64 669 . . 909 . 297 . . . . . Impact 678 | . . . . . . . . . . . . . . . . 277 . 401 . . Slashing . | . . . . . . . . . . . . . . . . . . . . . Piercing . | . . . . . . . . . . . . . . . . . . . . . Highest Corruption 21 | . 2 2 . . . . 1 . 1 2 2 2 8 2 21 . . . . . Average Corruption 2 | . 1 2 . . . . 1 . 1 1 2 2 2 1 7 . . . . . Corruption Purged 1 | . . . . . . . 1 . . . . . . . . . . . . . Corruption Blocked . | . . . . . . . . . . . . . . . . . . . . . Effects 82 | . 1 7 . . . . 1 . 8 13 13 1 7 9 22 . . . . . Message Errors 18 | . . 2 . . . . . . 2 1 2 . 2 3 6 . . . . . Matter Fused 18 | . . 3 . . . . . . . 5 3 . 2 4 1 . . . . . Heat Flow Errors 10 | . 1 . . . . . . . . 3 1 1 . 2 2 . . . . . Energy Discharges 5 | . . . . . . . . . 1 1 . . 1 . 2 . . . . . Parts Fused 1 | . . . . . . . 1 . . . . . . . . . . . . . Data Loss (minor) 9 | . . 1 . . . . . . 2 1 2 . 1 . 2 . . . . . Data Loss (major) 4 | . . . . . . . . . 1 1 1 . . . 1 . . . . . Misfires 5 | . . . . . . . . . 1 1 2 . . . 1 . . . . . Alerts 5 | . . . . . . . . . 1 . 2 . 1 . 1 . . . . . Weapon Failures 7 | . . 1 . . . . . . . . . . . . 6 . . . . . Overload Shots 31 | . . . . . . . . . . 1 . . . . . 27 2 . . 1 Effects 2 | . . . . . . . . . . . . . . . . 2 . . . . Energy Bleed 1 | . . . . . . . . . . . . . . . . 1 . . . . Short Circuit 1 | . . . . . . . . . . . . . . . . 1 . . . . Overflow Damage 1968 | . 17 . 32 3 . . . . 103 59 29 . . . 136 91 . 151 . 1347 Projectiles 244 | . 17 . 27 3 . . . . 103 59 29 . . . . . . . . 6 Explosions 1482 | . . . 5 . . . . . . . . . . . 136 . . . . 1341 Melee 242 | . . . . . . . . . . . . . . . . 91 . 151 . . Knockbacks 11 | . 1 . 4 . . . . . . . . . . . . 4 . 2 . . Impact 7 | . 1 . . . . . . . . . . . . . . 4 . 2 . . Kinetic 3 | . . . 3 . . . . . . . . . . . . . . . . . Secondary 1 | . . . 1 . . . . . . . . . . . . . . . . . Self-Inflicted Damage 581 | . . . . . . . . . . . . . 99 21 218 33 . . . 210 Shots 6 | . . . . . . . . . . . . . 1 1 3 . . . . 1 Rammed 24 | . 1 . 9 . 2 4 1 . 1 . . . 1 . . 5 . . . . Targets Rammed 26 | . 1 . 10 . 3 4 1 . 1 . . . 1 . . 5 . . . . Kicked . | . . . . . . . . . . . . . . . . . . . . . Crushed 2 | . . . 1 . 1 . . . . . . . . . . . . . . . Highest Temperature 374 | . 254 . 207 129 200 200 1 . 146 98 . . . 374 177 88 . 42 36 . Average Temperature 75 | . 79 . 64 67 101 93 1 . 46 41 . . . 144 59 22 . 11 11 . Received Heat Transfer 2975 | . 234 . 252 18 244 222 81 . 357 172 40 9 12 144 812 63 33 . . 282 Effects 6 | . . . . . 2 . . . . . . . . 4 . . . . . . Energy Bleed 1 | . . . . . . . . . . . . . . 1 . . . . . . Interference 5 | . . . . . 2 . . . . . . . . 3 . . . . . . Siege Activations 1 | . . . . . . . . . . . . . . . 1 . . . . . Total Turns 12 | . . . . . . . . . . . . . . . 12 . . . . . Longest Duration 12 | . . . . . . . . . . . . . . . 12 . . . . . Martial Activations . | . . . . . . . . . . . . . . . . . . . . . Shielding Activations . | . . . . . . . . . . . . . . . . . . . . . Robots Disrupted . | . . . . . . . . . . . . . . . . . . . . . Combat Hostiles . | . . . . . . . . . . . . . . . . . . . . . Robots Corrupted 10 | . . . . . . . . . . . . . 5 . . 3 . 2 . . Combat Hostiles 3 | . . . . . . . . . . . . . . . . 3 . . . . Parts Fried 10 | . . . . . . . . . . . . . 4 . . 5 . 1 . . Impact Corruptions 10 | . . . . . . . . . . . . . . . . 5 . 5 . . Robots Melted 16 | . . . . . 1 3 . . 6 3 . . . 1 2 . . . . . Combat Hostiles 13 | . . . . . 1 2 . . 6 1 . . . 1 2 . . . . . Parts Melted 70 | . 2 . 3 . 8 9 3 . 16 6 2 1 1 7 12 . . . . . Heat Transferred 32838 | . 1556 148 3956 294 2991 2415 962 . 7075 2880 1476 350 700 2886 4838 111 . . . 200 Parts Sabotaged . | . . . . . . . . . . . . . . . . . . . . . Parts Stolen . | . . . . . . . . . . . . . . . . . . . . . Parts Stripped . | . . . . . . . . . . . . . . . . . . . . . Power Chain Reactions 5 | . 2 . . . . . . . . . . . 1 . 2 . . . . . Alert | -11 -10 -10 -9 -9 -8 -8 -8 -8 -6 -6 -6 -6 -6 -5 -4 -3 -3 -2 -2 -2 ------- Run | Yrd Mat Min Mat Min Mat Sto Rec Scr Fac Ext Cet Arc Hub Fac Fac Res Qua Res Tes Frg Maximum Alert Level 5 | . . . 3 1 . . . . 3 4 3 2 2 4 5 4 3 2 1 3 Low Security (%) 46 | . 100 100 46 79 100 100 100 . 13 . . . 18 . . . . . . 70 Level 1 14 | . . . 11 20 . . . . 52 26 . 27 68 29 . . . 21 100 4 Level 2 13 | . . . 40 . . . . . 27 31 . 72 12 12 7 . . 78 . 10 Level 3 13 | . . . 1 . . . . . 6 26 99 . . 13 33 40 100 . . 14 Level 4 10 | . . . . . . . . . . 15 . . . 44 46 59 . . . . Level 5 . | . . . . . . . . . . . . . . . 11 . . . . . High Security . | . . . . . . . . . . . . . . . . . . . . . Max Security . | . . . . . . . . . . . . . . . . . . . . . Peak Influence 2087 | . 121 68 703 271 150 195 89 . 725 1349 842 431 604 1554 2087 1312 782 495 308 1091 Initial 1062 | . . 21 16 271 42 . 49 . . 347 747 286 136 268 758 1062 726 411 253 138 Average 417 | . 37 15 284 148 58 91 10 . 373 686 770 392 276 917 1216 1172 747 425 274 260 Influence Increases 14298 | . 367 112 1196 190 463 551 232 . 1746 1746 355 175 684 1808 2017 721 127 250 93 1465 Destroy 0b10 Robot/C 6360 | . 240 80 720 140 320 280 140 . 1000 740 160 80 120 720 940 100 . 100 . 480 Destroy 0b10 Robot/NC 420 | . 30 . 70 . 15 65 5 . 40 20 10 . 35 30 50 . . 10 . 40 Destroy Leader 1266 | . 56 10 230 30 72 92 . . 216 74 . . 36 134 198 20 . 24 . 74 Allied During Kill 1940 | . . . . 20 12 . . . 353 733 170 80 191 296 80 . . 5 . . Successful Hack 399 | . 5 7 24 . 14 51 26 . 28 80 . . . 38 5 40 5 33 12 31 Select Force Hacks 150 | . 30 . 60 . . . 60 . . . . . . . . . . . . . Disable Machine 1155 | . . . 45 . . 45 . . 45 30 . 15 180 150 285 45 15 . 45 255 Anti-Garrison Action 400 | . . . . . . . . . . . . . . 200 . 200 . . . . Destroy Structure 1398 | . 6 . 17 . . 3 1 . 49 39 15 . 107 240 444 46 32 63 6 330 Partial Spotted 135 | . . . . . . . . . 15 . . . 15 . . 30 . . 15 60 Lose Combat Pursuer 675 | . . 15 30 . 30 15 . . . 30 . . . . 15 240 75 15 15 195 Influence Decreases 13261 | . 312 123 543 776 574 423 360 . 1036 1121 974 500 527 808 1542 1451 687 532 298 674 Entered New Map 5498 | . . 34 28 426 69 . 79 . . 363 588 430 255 280 790 961 567 322 198 108 Time Decay 5912 | . 292 89 515 350 324 423 281 . 576 478 246 50 222 428 502 470 120 110 50 386 Lost Part 610 | . 20 . . . 20 . . . 40 30 20 . 10 . 230 20 . . 40 180 Lost Ally 950 | . . . . . 20 . . . 420 100 120 20 40 100 20 . . 100 10 . Purge Threat 291 | . . . . . 141 . . . . 150 . . . . . . . . . . Squads Dispatched 76 | . 2 . 5 . 1 1 . . 21 2 . . . 11 15 9 . 4 1 4 Investigation 31 | . 1 . 2 . 1 . . . 8 2 . . . 5 2 5 . 2 . 3 Extermination 11 | . . . . . . . . . 3 . . . . 1 3 1 . 2 1 . Reinforcement 19 | . 1 . 3 . . 1 . . 5 . . . . 3 2 3 . . . 1 Assault 8 | . . . . . . . . . 2 . . . . 1 5 . . . . . Garrison 7 | . . . . . . . . . 3 . . . . 1 3 . . . . . Intercept . | . . . . . . . . . . . . . . . . . . . . . Searches Triggered . | . . . . . . . . . . . . . . . . . . . . . Construction Impeded 5 | . . . 1 . . . . . 2 . . . . 1 1 . . . . . Haulers Reinforced 3 | . . . . . . . . . 1 . . . . 1 . 1 . . . . Active Scanning Responses . | . . . . . . . . . . . . . . . . . . . . . Cargo Convoy Interrupts . | . . . . . . . . . . . . . . . . . . . . . Stealth | -11 -10 -10 -9 -9 -8 -8 -8 -8 -6 -6 -6 -6 -6 -5 -4 -3 -3 -2 -2 -2 --------- Run | Yrd Mat Min Mat Min Mat Sto Rec Scr Fac Ext Cet Arc Hub Fac Fac Res Qua Res Tes Frg Distress Signals 37 | . 1 . 3 . 2 . . . 1 . 2 . 1 3 5 6 2 . 1 10 Communications Jammed . | . . . . . . . . . . . . . . . . . . . . . Distress Signals . | . . . . . . . . . . . . . . . . . . . . . Times Spotted 554 | . 22 5 54 7 20 22 6 . 49 36 10 2 11 42 79 38 17 13 5 116 Peak Tracking Total 19 | . 4 3 5 3 5 3 3 . 6 6 5 1 4 10 10 14 8 7 2 19 Tactical Retreats 27 | . 1 1 2 . 2 1 . . . 1 . . . . 1 8 1 1 1 7 Traps | -11 -10 -10 -9 -9 -8 -8 -8 -8 -6 -6 -6 -6 -6 -5 -4 -3 -3 -2 -2 -2 ------- Run | Yrd Mat Min Mat Min Mat Sto Rec Scr Fac Ext Cet Arc Hub Fac Fac Res Qua Res Tes Frg Traps Triggered 15 | . 2 . 2 . 1 . . . 2 1 . . 1 1 4 . . 1 . . Indirectly . | . . . . . . . . . . . . . . . . . . . . . Trap Hack Attempts 21 | . 21 . . . . . . . . . . . . . . . . . . . Triggered . | . . . . . . . . . . . . . . . . . . . . . Disarmed 1 | . 1 . . . . . . . . . . . . . . . . . . . Reprogrammed . | . . . . . . . . . . . . . . . . . . . . . Reused . | . . . . . . . . . . . . . . . . . . . . . Traps Extracted . | . . . . . . . . . . . . . . . . . . . . . Installed . | . . . . . . . . . . . . . . . . . . . . . Triggered . | . . . . . . . . . . . . . . . . . . . . . Machines | -11 -10 -10 -9 -9 -8 -8 -8 -8 -6 -6 -6 -6 -6 -5 -4 -3 -3 -2 -2 -2 ---------- Run | Yrd Mat Min Mat Min Mat Sto Rec Scr Fac Ext Cet Arc Hub Fac Fac Res Qua Res Tes Frg Machines Disabled 80 | . . . 3 . . 3 . . 3 4 1 1 12 10 19 3 1 . 3 17 Max in Single Turn 11 | . . . 1 . . 1 . . . 2 1 1 11 1 4 1 1 . 1 4 Garrison Access 8 | . . . . . . 1 . . 2 . . . 1 1 1 1 . . 1 . Network Hub 1 | . . . . . . . . . . . . . 1 . . . . . . . Machines Repaired . | . . . . . . . . . . . . . . . . . . . . . Machines Dismantled . | . . . . . . . . . . . . . . . . . . . . . Machines Sabotaged . | . . . . . . . . . . . . . . . . . . . . . Overloaded Fab Kills . | . . . . . . . . . . . . . . . . . . . . . Hacking | -11 -10 -10 -9 -9 -8 -8 -8 -8 -6 -6 -6 -6 -6 -5 -4 -3 -3 -2 -2 -2 --------- Run | Yrd Mat Min Mat Min Mat Sto Rec Scr Fac Ext Cet Arc Hub Fac Fac Res Qua Res Tes Frg Machines Accessed 114 | . 7 1 13 . 4 9 10 1 12 16 . . 5 9 4 8 2 3 3 7 Terminals 78 | . 5 1 10 . 4 8 6 . 5 14 . . 4 4 3 4 2 2 2 4 Fabricators . | . . . . . . . . . . . . . . . . . . . . . Repair Stations 2 | . 1 . 1 . . . . . . . . . . . . . . . . . Recycling Units 22 | . 1 . 2 . . . 2 . 5 2 . . . 4 . 2 . 1 . 3 Scanalyzers . | . . . . . . . . . . . . . . . . . . . . . Garrison Access 9 | . . . . . . 1 . . 2 . . . 1 1 1 2 . . 1 . Total Hacks 272 | . 19 3 22 . 8 20 44 6 22 32 . . 11 15 8 17 8 16 7 14 Successful 151 | . 12 2 15 . 5 12 33 6 9 21 . . 4 8 2 5 3 4 3 7 Failed 119 | . 7 . 7 . 3 8 11 . 13 10 . . 7 7 6 12 5 12 4 7 Catastrophic 26 | . . . . . . 1 4 . 5 . . . 1 2 3 4 2 3 . 1 Database Lockouts 2 | . . 1 . . . . . . . 1 . . . . . . . . . . Manual 172 | . 15 2 13 . 4 5 44 . 16 9 1 . 5 13 7 8 3 9 6 12 Terminals 184 | . 16 3 18 . 8 18 15 . 10 27 . . 9 6 7 9 8 15 6 9 Fabricators . | . . . . . . . . . . . . . . . . . . . . . Repair Stations 4 | . 2 . 2 . . . . . . . . . . . . . . . . . Recycling Units 38 | . 1 . 2 . . . 4 . 8 5 . . . 7 . 5 . 1 . 5 Scanalyzers . | . . . . . . . . . . . . . . . . . . . . . Garrison Access 15 | . . . . . . 2 . . 4 . . . 2 2 1 3 . . 1 . Terminal Hacks 96 | . 6 2 8 . 4 9 31 6 1 18 . . 2 1 . 2 3 2 . 1 Record 24 | . . . . . . . 24 . . . . . . . . . . . . . Part Schematic 5 | . . . . . . . 3 . . 2 . . . . . . . . . . Robot Schematic 1 | . . . . . . . 1 . . . . . . . . . . . . . Robot Analysis 13 | . 2 . 1 . 1 2 . 6 . . . . . . . 1 . . . . Prototype ID Bank 12 | . 2 1 3 . . . 2 . . 3 . . . . . . 1 . . . Open Door 10 | . . . . . . 1 . . . 9 . . . . . . . . . . Level Access Points 1 | . . . . . . . . . . . . . . 1 . . . . . . Branch Access Points 5 | . . . 1 . 1 1 . . . . . . . . . 1 . 1 . . Machine Index 1 | . . . . . . . . . . . . . . . . . 1 . . . Garrison Index 1 | . . . . . . 1 . . . . . . . . . . . . . . Alert Level 1 | . . . . . . . . . . . . . . . . . . 1 . . Unreport Threat 2 | . . . . . 1 . . . . 1 . . . . . . . . . . Locate Traps 15 | . 2 . 2 . 1 4 . . 1 2 . . 2 . . . . . . 1 Recall Investigation 1 | . . 1 . . . . . . . . . . . . . . . . . . Hauler Manifests 1 | . . . 1 . . . . . . . . . . . . . . . . . Registered Prototypes 1 | . . . . . . . . . . 1 . . . . . . . . . . Zone Layout 1 | . . . . . . . . . . . . . . . . . 1 . . . Release Object 1 | . . . . . . . 1 . . . . . . . . . . . . . Fabricator Hacks . | . . . . . . . . . . . . . . . . . . . . . Repair Station Hacks 4 | . 2 . 2 . . . . . . . . . . . . . . . . . Scan Component 2 | . 1 . 1 . . . . . . . . . . . . . . . . . Repair 2 | . 1 . 1 . . . . . . . . . . . . . . . . . Recycling Unit Hacks . | . . . . . . . . . . . . . . . . . . . . . Scanalyzer . | . . . . . . . . . . . . . . . . . . . . . Garrison Access Hacks 5 | . . . . . . 1 . . 1 . . . 1 . 1 . . . 1 . Seal Access 5 | . . . . . . 1 . . 1 . . . 1 . 1 . . . 1 . Unauthorized Hacks 46 | . 4 . 5 . 1 2 2 . 7 3 . . 1 7 1 3 . 2 2 6 Terminals 22 | . 3 . 3 . 1 2 . . 2 1 . . 1 2 1 . . 1 2 3 Assimilate 1 | . . . . . . . . . . . . . . . . . . . 1 . Botnet 21 | . 3 . 3 . 1 2 . . 2 1 . . 1 2 1 . . 1 1 3 Fabricators . | . . . . . . . . . . . . . . . . . . . . . Repair Stations . | . . . . . . . . . . . . . . . . . . . . . Recycling Units 22 | . 1 . 2 . . . 2 . 5 2 . . . 4 . 2 . 1 . 3 Tunnel 5 | . 1 . 2 . . . 2 . . . . . . . . . . . . . Fedlink 10 | . . . . . . . . . 1 2 . . . 2 . 2 . . . 3 Scrapoids 7 | . . . . . . . . . 4 . . . . 2 . . . 1 . . Scanalyzers . | . . . . . . . . . . . . . . . . . . . . . Garrison Access 2 | . . . . . . . . . . . . . . 1 . 1 . . . . Jam 2 | . . . . . . . . . . . . . . 1 . 1 . . . . Data Cores Recovered 5 | . 1 . . . . 2 . . 1 . . . 1 . . . . . . . Used 3 | . 1 . . . . 2 . . . . . . . . . . . . . . Hacking Detections 69 | . 5 1 4 . 3 6 5 . 8 7 1 . 4 6 3 7 1 2 2 4 Full Trace Events 2 | . . . . . . . . . 1 . . . . . . . . 1 . . Feedback Events . | . . . . . . . . . . . . . . . . . . . . . Feedback Blocked . | . . . . . . . . . . . . . . . . . . . . . Robot Schematics Acquired 1 | . . . . . . . 1 . . . . . . . . . . . . . Robots Built . | . . . . . . . . . . . . . . . . . . . . . Authchips . | . . . . . . . . . . . . . . . . . . . . . Time . | . . . . . . . . . . . . . . . . . . . . . Total Robot Build Rating . | . . . . . . . . . . . . . . . . . . . . . Part Schematics Acquired 5 | . . . . . . . 3 . . 2 . . . . . . . . . . Parts Built . | . . . . . . . . . . . . . . . . . . . . . Authchips . | . . . . . . . . . . . . . . . . . . . . . Time . | . . . . . . . . . . . . . . . . . . . . . Total Part Build Rating . | . . . . . . . . . . . . . . . . . . . . . Parts Repaired 2 | . 1 . 1 . . . . . . . . . . . . . . . . . Time 64 | . 26 . 38 . . . . . . . . . . . . . . . . . Parts Recycled . | . . . . . . . . . . . . . . . . . . . . . Recycled Matter . | . . . . . . . . . . . . . . . . . . . . . Retrieved Matter . | . . . . . . . . . . . . . . . . . . . . . Retrieved Components . | . . . . . . . . . . . . . . . . . . . . . Parts Scanalyzed . | . . . . . . . . . . . . . . . . . . . . . Part Schematics Acquired . | . . . . . . . . . . . . . . . . . . . . . Parts Damaged . | . . . . . . . . . . . . . . . . . . . . . Bothacking | -11 -10 -10 -9 -9 -8 -8 -8 -8 -6 -6 -6 -6 -6 -5 -4 -3 -3 -2 -2 -2 ------------ Run | Yrd Mat Min Mat Min Mat Sto Rec Scr Fac Ext Cet Arc Hub Fac Fac Res Qua Res Tes Frg Used RIF Installer . | . . . . . . . . . . . . . . . . . . . . . Robots Hacked 11 | . . . . . . . 9 1 1 . . . . . . . . . . . Non-combat 3 | . . . . . . . 2 . 1 . . . . . . . . . . . Combat 8 | . . . . . . . 7 1 . . . . . . . . . . . . Robot Hacks Applied 17 | . . . . . . . 15 1 1 . . . . . . . . . . . parse_system 16 | . . . . . . . 15 1 . . . . . . . . . . . . no_distress 1 | . . . . . . . . . 1 . . . . . . . . . . . Relay Couplers Released 7 | . . . . . . . . . 5 . . . 2 . . . . . . . Machine Destruction 4 | . . . . . . . . . 2 . . . 2 . . . . . . . Programmers 3 | . . . . . . . . . 3 . . . . . . . . . . . Fabnet Peak Effective % . | . . . . . . . . . . . . . . . . . . . . . Robots Rewired 24 | . . . . . . . 13 . . 11 . . . . . . . . . . Allies Hacked . | . . . . . . . . . . . . . . . . . . . . . Hacks Repelled . | . . . . . . . . . . . . . . . . . . . . . Allies | -11 -10 -10 -9 -9 -8 -8 -8 -8 -6 -6 -6 -6 -6 -5 -4 -3 -3 -2 -2 -2 -------- Run | Yrd Mat Min Mat Min Mat Sto Rec Scr Fac Ext Cet Arc Hub Fac Fac Res Qua Res Tes Frg Total Allies 79 | . . . . 2 . . 13 . 20 23 5 . . 10 . . . 5 1 . Largest Group 18 | . . . . 2 2 . 13 13 13 18 18 16 15 6 4 . . 5 1 . Highest-Rated Group 976 | . . . . 48 48 . 200 200 200 695 976 824 790 334 188 . . 320 26 . Highest-Rated Ally 159 | . . . . 31 31 . 21 21 31 159 152 96 96 96 47 . . 64 26 . Total Orders 3 | . . . . . . . 2 1 . . . . . . . . . . . . STAY 3 | . . . . . . . 2 1 . . . . . . . . . . . . Ally Attacks 597 | . . . . 16 9 . . . 170 139 51 8 58 91 27 . . 28 . . Total Damage 11514 | . . . . 235 127 . . . 2946 2491 1051 200 1137 1863 554 . . 910 . . Kills 89 | . . . . 6 1 . . . 21 22 5 2 9 13 5 . . 5 . . Allies Corrupted 6 | . . . . . . . . . 1 . . . 5 . . . . . . . Allies Melted . | . . . . . . . . . . . . . . . . . . . . . Intel | -11 -10 -10 -9 -9 -8 -8 -8 -8 -6 -6 -6 -6 -6 -5 -4 -3 -3 -2 -2 -2 ------- Run | Yrd Mat Min Mat Min Mat Sto Rec Scr Fac Ext Cet Arc Hub Fac Fac Res Qua Res Tes Frg Active Infowar (turns) 3206 | . . . . . . . . . . . . . . . 1131 552 243 234 116 930 Optics 2519 | . . . . . . . . . . . . . . . 669 327 243 234 116 930 Sensors 1262 | . . . . . . . . . . . . . . . 29 424 242 234 116 217 IFF 128 | . . . . . . . . . . . . . . . . 128 . . . . Terrain 1 | . . . . . . . . . . . . . . . . . . . . 1 Seismic 945 | . . . . . . . . . . . . . . . 945 . . . . . Robot Analysis Total 13 | . 2 . 1 . 1 2 . 6 . . . . . . . 1 . . . . Derelict Logs Recovered 4 | . . 1 . 1 . . . 2 . . . . . . . . . . . . Drone Launches . | . . . . . . . . . . . . . . . . . . . . . Drone Recoveries . | . . . . . . . . . . . . . . . . . . . . . Exploration | -11 -10 -10 -9 -9 -8 -8 -8 -8 -6 -6 -6 -6 -6 -5 -4 -3 -3 -2 -2 -2 ------------- Run | Yrd Mat Min Mat Min Mat Sto Rec Scr Fac Ext Cet Arc Hub Fac Fac Res Qua Res Tes Frg Turns Passed 21880 | . 1103 536 2178 790 772 1150 2437 3411 2051 1232 538 101 476 1046 1347 1189 243 234 116 930 Spaces Moved 15083 | 1 581 214 1111 477 366 578 1335 2063 1096 611 266 49 281 548 661 2131 450 654 353 1257 Core 444 | . . . . . . . . . . . . . . . 24 412 . . . 8 Treads 9975 | . 343 214 1111 477 366 578 1335 2063 1096 611 266 49 281 548 637 . . . . . Legs 239 | 1 238 . . . . . . . . . . . . . . . . . . . Wheels . | . . . . . . . . . . . . . . . . . . . . . Hover 4199 | . . . . . . . . . . . . . . . . 1719 450 654 353 1023 Flight 226 | . . . . . . . . . . . . . . . . . . . . 226 Fastest Speed 20 | 120 120 160 160 160 160 160 160 160 156 156 156 160 160 160 50 36 32 20 20 21 Average Speed 120 | 120 143 160 160 160 160 160 160 160 157 163 162 160 160 160 156 45 33 23 25 45 Slowest Speed 305 | 120 160 160 160 160 160 160 160 160 236 235 238 160 160 160 160 111 104 28 108 305 Overloaded Moves . | . . . . . . . . . . . . . . . . . . . . . Propulsion Burnouts . | . . . . . . . . . . . . . . . . . . . . . Robots Hopped . | . . . . . . . . . . . . . . . . . . . . . Potential Cave-ins 6 | . . . . . . . . . . . . . . . . . 6 . . . Cave-ins Triggered . | . . . . . . . . . . . . . . . . . . . . . Teleports 3 | . . . . . . . . . . . . . . . . . 1 . . 2 Exploration Rate (%) 57 | 2 86 54 94 98 35 90 99 90 37 84 56 66 34 23 27 49 57 16 61 40 Regions Visited 20 Branch Regions 12 Pre-discovered Areas 8 | . 1 . 2 1 . . 2 1 . 1 . . . . . . . . . . Known Exits Taken 9 | . . . 1 . 1 1 . . . . . . 1 1 . 1 1 1 1 . Unknown Exits Taken 11 | 1 1 1 . 1 . . 1 1 1 1 1 1 . . 1 . . . . . Scrap Searched 9 | . . . . 1 . . . 8 . . . . . . . . . . . . Spaces Dug 63 | . . . . . . . . . 4 . . . . 4 . 18 13 6 2 16 Terrain Destroyed 841 | . 5 . 10 . . . . . 34 35 7 . 164 72 233 29 25 8 2 217 Melee 24 | . . . . . . . . . . . . . . . . 3 13 6 2 . Projectile 167 | . . . 6 . . . . . 17 23 7 . 8 38 19 26 12 2 . 9 AOE 650 | . 5 . 4 . . . . . 17 12 . . 156 34 214 . . . . 208 Terrain Rammed . | . . . . . . . . . . . . . . . . . . . . . Walls Destroyed . | . . . . . . . . . . . . . . . . . . . . . Machines Disabled . | . . . . . . . . . . . . . . . . . . . . . Actions | -11 -10 -10 -9 -9 -8 -8 -8 -8 -6 -6 -6 -6 -6 -5 -4 -3 -3 -2 -2 -2 --------- Run | Yrd Mat Min Mat Min Mat Sto Rec Scr Fac Ext Cet Arc Hub Fac Fac Res Qua Res Tes Frg Total 17486 | . 738 390 1317 485 469 717 1594 2178 1272 764 350 67 289 617 792 2301 504 712 372 1558 Wait 868 | . 39 162 51 . 25 23 73 88 28 57 25 17 . 17 . 46 . 32 3 182 Move 15063 | . 580 213 1110 476 365 577 1334 2062 1095 610 265 48 280 547 660 2130 449 653 352 1257 Hop . | . . . . . . . . . . . . . . . . . . . . . Pick Up 137 | . 9 3 14 . 10 11 . 14 23 1 15 . . 2 11 9 10 3 . 2 Fast Attach 93 | . 5 1 5 . 2 9 . . 8 . 1 . . 3 8 29 . 1 1 20 Attach 83 | . 3 . 2 . 5 1 1 1 11 3 5 . . 5 13 5 6 3 4 15 Detach 52 | . 2 1 . . . 1 1 . 3 . 2 . . 3 3 12 5 1 2 16 Swap 87 | . 8 . 12 . 8 12 4 1 16 4 5 . . 5 5 1 2 3 1 . Drop 154 | . 10 1 23 . 11 24 . 11 21 . 17 . . . 2 16 1 1 3 13 Fire 626 | . 60 9 90 9 40 55 11 . 62 33 15 2 8 35 90 36 15 3 . 53 Melee 80 | . . . . . . . 32 1 1 . . . . . . 12 16 12 6 . Ram 5 | . . . . . . . . . . . . . . . . 5 . . . . Kick . | . . . . . . . . . . . . . . . . . . . . . Crush 21 | . 1 . 10 . 3 4 1 . 1 . . . 1 . . . . . . . Escape Stasis . | . . . . . . . . . . . . . . . . . . . . . Rewire 196 | . . . . . . . 137 . 3 56 . . . . . . . . . . Trap 21 | . 21 . . . . . . . . . . . . . . . . . . . Miscellaneous . | . . . . . . . . . . . . . . . . . . . . . Route ------- -11/Scrapyard -10/Materials (discovered 6 exits: *Mat x3 / *Min x2 / [*Sub]) -10/Mines (discovered 2 exits: *Mat x2) -9/Materials (discovered 4 exits: *Mat x3 / *Min) -9/Mines (discovered 2 exits: *Mat x2) -8/Materials -8/Storage (discovered 2 exits: [*Fac] / *Rec) -8/Recycling (discovered 2 exits: *Fac / *Scr) -8/Scraptown (discovered 2 exits: *Fac x2) -6/Factory (discovered 4 exits: *Fac x2 / *Low / *Ext) -6/Extension (discovered 2 exits: *Fac / *Cet) -6/Cetus (discovered 2 exits: *Fac / [*Arc]) -6/Archives (discovered 2 exits: *Hub x2) -6/Hub_04(d) -5/Factory (discovered 4 exits: *Fac x4) -4/Factory -3/Research (discovered 5 exits: *Res x2 / *Arm / *Qua x2) -3/Quarantine -2/Research (discovered 3 exits: *Acc / *Tes x2) -2/Testing (discovered 3 exits: *Acc / *Sec / *Frg) -2/Protoforge History --------- Turn | Location | Event 1 | -11/Scrapyard | Discovered new exit (range 0) 1 | -11/Scrapyard | Entered Materials 302 | -10/Materials | Build established: Mutant 441 | -10/Materials | Discovered new exit (range 14) 547 | -10/Materials | Discovered new exit (range 7) 566 | -10/Materials | Discovered new exit (range 10) 601 | -10/Materials | Derelicts attacked the area 679 | -10/Materials | Discovered new exit (range 14) 862 | -10/Materials | Core integrity fell below 50% 937 | -10/Materials | Repaired Lgt. Treads 951 | -10/Materials | Discovered new exit (range 9) 1088 | -10/Materials | Discovered new exit (range 10) 1104 | -10/Materials | Entered Mines 1154 | -10/Mines | Joined a pair of Derelicts in attacking an 0b10 outpost 1197 | -10/Mines | Assembled infested the area 1537 | -10/Mines | Central database locked down 1549 | -10/Mines | Learned Materials interactive machine intel 1601 | -10/Mines | Discovered new exit (range 7) 1617 | -10/Mines | Discovered new exit (range 15) 1640 | -10/Mines | Entered Materials 1640 | -9/Materials | Evolved 2 slots: Propulsion x1, Weapon x1 1641 | -9/Materials | Loaded intel: 18 interactive machine locations 2171 | -9/Materials | Build established: Scavenger-Gunner 2263 | -9/Materials | Identified exit to Mines 2326 | -9/Materials | Discovered new exit (range 15) 2606 | -9/Materials | Discovered new exit (range 6) 2775 | -9/Materials | Repaired Nuclear Core 3431 | -9/Materials | Discovered new exit (range 8) 3491 | -9/Materials | Build established: Gunner 3818 | -9/Materials | Entered Mines 3983 | -9/Mines | Discovered new exit (range 8) 4178 | -9/Mines | Found a hidden stash of uninstalled traps 4329 | -9/Mines | Discovered new exit (range 12) 4385 | -9/Mines | Learned location of Storage (-8) 4608 | -9/Mines | Entered Materials 4608 | -8/Materials | Accompanied by 2 allies 4608 | -8/Materials | Evolved 2 slots: Utility x2 4613 | -8/Materials | Led the pair of lost Derelicts to an unsafe place 4710 | -8/Materials | Identified exit to Storage 5352 | -8/Materials | Build established: Scavenger-Gunner 5380 | -8/Materials | Entered Storage 5807 | -8/Storage | Identified exit to Recycling 6421 | -8/Storage | Discovered new exit (range 5) 6524 | -8/Storage | Used back door to open Recycling access 6530 | -8/Storage | Entered Recycling 6675 | -8/Recycling | Build established: Gunner 6723 | -8/Recycling | Discovered new exit (range 6) 7622 | -8/Recycling | Scanned before Scraplab entrance 7647 | -8/Recycling | Entered Scraplab 7749 | -8/Recycling | Discovered new exit (range 2) 7933 | -8/Recycling | Build established: Commander-Mutant 8967 | -8/Recycling | Entered Scraptown 8967 | -8/Scraptown | Accompanied by 13 allies 9435 | -8/Scraptown | Scanned Subdweller tech in exchange for log data 9439 | -8/Scraptown | Learned location of Warlord (-5) 9441 | -8/Scraptown | Learned Research trap positions 9457 | -8/Scraptown | Discovered new exit (range 13) 9869 | -8/Scraptown | Visited Bundlers 9946 | -8/Scraptown | Visited Cyclists 9962 | -8/Scraptown | Visited Assassins FH 10008 | -8/Scraptown | Visited Symbiants 10022 | -8/Scraptown | Visited Cave Peace 10070 | -8/Scraptown | Visited UFD Registry 10070 | -8/Scraptown | Registered with UFD as "Deathbay" 10131 | -8/Scraptown | Entered Cyclist Reading Room 10241 | -8/Scraptown | Guru changed UFD alias to "Railrunner" 10380 | -8/Scraptown | Visited LU-1G1's Boring Crew 10444 | -8/Scraptown | Visited Analyses Database 10479 | -8/Scraptown | Visited Botcube Research 10492 | -8/Scraptown | Found Botcube 10520 | -8/Scraptown | Visited Derelict Rescue Squad 10533 | -8/Scraptown | Found DRS Beacon 10561 | -8/Scraptown | Visited DA-N13 Charitable Foundation 10568 | -8/Scraptown | Found DCF Scrap (29 items) 10617 | -8/Scraptown | Visited Supply Room 10651 | -8/Scraptown | Visited Scrapoid Pod Storage 10683 | -8/Scraptown | Visited Scrapoid Research Area 10728 | -8/Scraptown | Visited Modified Component R&D 10870 | -8/Scraptown | Discovered new exit (range 5) 11167 | -8/Scraptown | Delivered Scrap Shield to a Scientist 11578 | -8/Scraptown | Visited Observation Area 11654 | -8/Scraptown | Build established: Commander-Gunner 12293 | -8/Scraptown | Met Optimus 12293 | -8/Scraptown | Accepted into 0bPrime 12378 | -8/Scraptown | Entered Factory 12378 | -6/Factory | Accompanied by 13 allies 12378 | -6/Factory | Evolved 4 slots: Power x1, Propulsion x1, Utility x1, Weapon x1 12732 | -6/Factory | Loaded intel: 8 recycling unit locations 12740 | -6/Factory | Found Prototype Processor 12740 | -6/Factory | Identified Exp. Targeting Computer 12814 | -6/Factory | Lost 3 allies 12917 | -6/Factory | Lost 6 allies 13004 | -6/Factory | Garrison activated, responded to threat 13022 | -6/Factory | Scrapoid reinforcements arrived 13079 | -6/Factory | P-60 Hacker assimilated allied 06F02-D 13231 | -6/Factory | Spotted B-75 Beast 13272 | -6/Factory | Scrapoid reinforcements arrived 13297 | -6/Factory | Discovered new exit (range 15) 13320 | -6/Factory | Identified exit to Factory 13321 | -6/Factory | Lost 3 parts (2n1u) 13321 | -6/Factory | Lost 8 allies 13587 | -6/Factory | Build established: Gunner 13667 | -6/Factory | Discovered new exit (range 9) 13678 | -6/Factory | Identified exit to Lower Caves 13754 | -6/Factory | Scrapoid reinforcements arrived 13796 | -6/Factory | Lost 3 allies 13826 | -6/Factory | Discovered exit to Factory (range 15) 13834 | -6/Factory | Destroyed 7 combat bots 14109 | -6/Factory | Found Prototype Launcher 14109 | -6/Factory | Identified Scatter Rocket Array 14118 | -6/Factory | Found Scatter Rocket Array 14245 | -6/Factory | Scrapoids reinforcements arrived? 14408 | -6/Factory | Discovered new exit (range 14) 14429 | -6/Factory | Entered Extension 14429 | -6/Extension | Accompanied by 4 allies 14445 | -6/Extension | Disrupted transfer network 14499 | -6/Extension | Rescued a captive Derelict 14500 | -6/Extension | Rescued a captive Derelict 14539 | -6/Extension | Build established: Commander-Gunner 14613 | -6/Extension | Lost 3 allies 14671 | -6/Extension | Rescued a captive Derelict 14721 | -6/Extension | Rescued A7 14758 | -6/Extension | Rescued a captive Derelict 14784 | -6/Extension | Rescued a captive Derelict 14795 | -6/Extension | Loaded intel: 2 recycling unit locations 14795 | -6/Extension | Learned location of Protoforge (-2) 14881 | -6/Extension | Rescued a captive Derelict 15129 | -6/Extension | Spotted B-75 Beast 15142 | -6/Extension | Allies destroyed B-75 Beast 15156 | -6/Extension | Spotted B-75 Beast 15163 | -6/Extension | Allies destroyed B-75 Beast 15176 | -6/Extension | Lost 3 allies 15214 | -6/Extension | Rescued a captive Derelict 15215 | -6/Extension | Rescued a captive Derelict 15393 | -6/Extension | Rescued a captive Derelict 15396 | -6/Extension | Rescued a captive Derelict 15470 | -6/Extension | Rescued a captive Derelict 15472 | -6/Extension | Rescued a captive Derelict 15538 | -6/Extension | Central database locked down 15580 | -6/Extension | Discovered exit to Factory (range 10) 15581 | -6/Extension | Discovered new exit (range 6) 15661 | -6/Extension | Entered Cetus 15661 | -6/Cetus | Accompanied by 18 allies (A7) 15666 | -6/Cetus | Acquired a Cetus Manufacturing Module code from A7 15683 | -6/Cetus | Spotted Cetus Guard 15683 | -6/Cetus | Spotted Cetus Guard 15685 | -6/Cetus | Allies destroyed Cetus Guard 15686 | -6/Cetus | Spotted Cetus Guard 15690 | -6/Cetus | Spotted Cetus Guard 15699 | -6/Cetus | Allies destroyed Cetus Guard 15706 | -6/Cetus | Destroyed Cetus Guard 15708 | -6/Cetus | Allies destroyed Cetus Guard 15874 | -6/Cetus | Started Cetus Manufacturing Module 15893 | -6/Cetus | Discovered new exit (range 16) 15899 | -6/Cetus | Manufactured an Enhanced Grunt 15924 | -6/Cetus | Manufactured an Enhanced Grunt 15928 | -6/Cetus | Spotted Cetus Guard 15928 | -6/Cetus | Spotted Cetus Guard 15930 | -6/Cetus | Spotted Cetus Guard 15931 | -6/Cetus | Spotted Cetus Guard 15942 | -6/Cetus | Allies destroyed Cetus Guard 15944 | -6/Cetus | Destroyed Cetus Guard 15949 | -6/Cetus | Manufactured an Enhanced Grunt 15949 | -6/Cetus | Destroyed Cetus Guard 15952 | -6/Cetus | Destroyed Cetus Guard 15963 | -6/Cetus | Discovered exit to Factory (range 16) 15974 | -6/Cetus | Manufactured an Enhanced Grunt 15977 | -6/Cetus | Met Revision 17 15980 | -6/Cetus | Lost 4 allies 15999 | -6/Cetus | Manufactured an Enhanced Grunt 16043 | -6/Cetus | Build established: Commander-Tank 16060 | -6/Cetus | Murdered A7 16065 | -6/Cetus | Extracted ID and sensor layout for unrecognized location from A7's data core 16199 | -6/Cetus | Entered Archives 16199 | -6/Archives | Accompanied by 16 allies 16242 | -6/Archives | Discovered new exit (range 15) 16256 | -6/Archives | Discovered new exit (range 15) 16300 | -6/Archives | Entered Hub_04(d) 16300 | -6/Hub_04(d) | Accompanied by 15 allies 16347 | -6/Hub_04(d) | Spotted B-75 Beast 16364 | -6/Hub_04(d) | Allies destroyed B-75 Beast 16594 | -6/Hub_04(d) | Discovered exit to Factory (range 3) 16715 | -6/Hub_04(d) | Network Hub disabled 16741 | -6/Hub_04(d) | Murdered 4 allies 16759 | -6/Hub_04(d) | Spotted Lightning 16759 | -6/Hub_04(d) | Spotted Lightning 16768 | -6/Hub_04(d) | Spotted Lightning 16776 | -6/Hub_04(d) | Entered Factory 16776 | -5/Factory | Accompanied by 2 allies 16776 | -5/Factory | Evolved 2 slots: Weapon x2 16807 | -5/Factory | Lost 6 allies 17079 | -5/Factory | Build established: Scavenger-Executioner 17125 | -5/Factory | Scrapoids reinforcements arrived? 17199 | -5/Factory | Garrison activated, responded to threat 17288 | -5/Factory | Loaded intel: 8 recycling unit locations 17579 | -5/Factory | Scrapoids reinforcements arrived? 17652 | -5/Factory | Identified exit to Factory 17676 | -5/Factory | First assault squad dispatched 17822 | -5/Factory | Entered another Factory area 17822 | -4/Factory | Accompanied by 4 allies 17822 | -4/Factory | Evolved 2 slots: Utility x2 18322 | -4/Factory | First assault squad dispatched 18480 | -4/Factory | Spotted B-86 Titan 18496 | -4/Factory | Destroyed B-86 Titan 18565 | -4/Factory | Destroyed 9 combat bots 18568 | -4/Factory | Lost 5 parts (1n1u3w) 18579 | -4/Factory | Allied Derelicts emerged from ambush trap array 18725 | -4/Factory | Discovered new exit (range 7) 18925 | -4/Factory | System corruption reached 10% 18974 | -4/Factory | Lost 6 parts (1n2u3w) 18991 | -4/Factory | Lost 3 allies 19155 | -4/Factory | Destroyed 10 combat bots 19156 | -4/Factory | Released all parts (7) 19161 | -4/Factory | Core integrity fell below 50% 19169 | -4/Factory | Entered Research 19169 | -3/Research | Evolved 2 slots: Propulsion x1, Weapon x1 19170 | -3/Research | Loaded intel: 101 trap records 19186 | -3/Research | Lost 9 parts (2p2n1u4w) 19262 | -3/Research | Spotted B-86 Titan 19280 | -3/Research | Spotted B-86 Titan 19364 | -3/Research | Loaded intel: 5 recycling unit locations 19369 | -3/Research | Revision forces began assault on 0b10 19419 | -3/Research | Discovered new exit (range 12) 19507 | -3/Research | Discovered new exit (range 5) 19591 | -3/Research | Identified exit to Armory 19634 | -3/Research | Identified exit to Quarantine 19685 | -3/Research | Build established: Hacker-Mutant 19693 | -3/Research | Discovered new exit (range 15) 19766 | -3/Research | Lost 3 allies 19852 | -3/Research | Discovered new exit (range 3) 19853 | -3/Research | Identified exit to Research 19869 | -3/Research | Research terminal network offline 20319 | -3/Research | Spotted Striker 20338 | -3/Research | Build established: Hacker-Scout 20358 | -3/Research | Spotted Striker 20358 | -3/Research | Entered Quarantine 20365 | -3/Quarantine | Lost 3 allies 20499 | -3/Quarantine | Found Alien Artifact 20511 | -3/Quarantine | Found Alien Artifact 20512 | -3/Quarantine | Found Alien Artifact 20514 | -3/Quarantine | Found Alien Artifact 20515 | -3/Quarantine | Identified Hpw. Transdimensional Reconstructor (x3) 20515 | -3/Quarantine | Warped through subspace 20516 | -3/Quarantine | Core integrity fell below 50% 20599 | -3/Quarantine | Discovered exit to Research (range 5) 20601 | -3/Quarantine | Entered Research 20601 | -2/Research | Evolved 2 slots: Propulsion x1, Utility x1 20625 | -2/Research | Discovered new exit (range 9) 20626 | -2/Research | Found Prototype Launcher 20626 | -2/Research | Identified Tactical Quantum Warhead 20629 | -2/Research | Identified exit to Access 20705 | -2/Research | Scrapoids reinforcements arrived? 20749 | -2/Research | Lost 3 allies 20787 | -2/Research | Identified exit to Testing 20835 | -2/Research | Entered Testing 20860 | -2/Testing | Found Prototype Launcher 20860 | -2/Testing | Identified Z-bomb Delivery System 20880 | -2/Testing | Discovered exit to Access (range 14) 20905 | -2/Testing | Spotted PD-NZUY738LT1 20926 | -2/Testing | Spotted Fortress 20947 | -2/Testing | Discovered new exit (range 6) 20947 | -2/Testing | Discovered new exit (range 7) 20948 | -2/Testing | Identified exit to Section 7 20949 | -2/Testing | Identified exit to Protoforge 20951 | -2/Testing | Entered Protoforge 20965 | -2/Protoforge | Lost 4 parts (3n1w) 20979 | -2/Protoforge | Superfortress began startup sequence 21008 | -2/Protoforge | Spotted Hotshot 21084 | -2/Protoforge | Spotted Hotshot 21170 | -2/Protoforge | Spotted Hotshot 21170 | -2/Protoforge | Spotted Hotshot 21170 | -2/Protoforge | Spotted AP7-3 21170 | -2/Protoforge | Spotted AP7-3 21175 | -2/Protoforge | Warped through subspace 21183 | -2/Protoforge | UFD initiated attack on Protoforge 21183 | -2/Protoforge | Loaded intel: 3 recycling unit locations 21205 | -2/Protoforge | Lost 10 parts (1p5n3u1w) 21208 | -2/Protoforge | Spotted EXE-6 21211 | -2/Protoforge | Spotted EXE-6 21219 | -2/Protoforge | Optimus greeted in Protoforge 21223 | -2/Protoforge | Found Prototype Device 21223 | -2/Protoforge | Identified Exp. Kinecellerator 21229 | -2/Protoforge | Found Prototype Processor 21229 | -2/Protoforge | Identified Exp. Armor Integrity Analyzer 21231 | -2/Protoforge | Found Prototype Processor 21231 | -2/Protoforge | Identified Exp. Core Analyzer 21242 | -2/Protoforge | Found UFD Drillbomb 21250 | -2/Protoforge | Spotted Decapitator 21251 | -2/Protoforge | Spotted Decapitator 21284 | -2/Protoforge | Found Prototype Slashing Weapon 21284 | -2/Protoforge | Identified Exp. Terror Saw 21289 | -2/Protoforge | Spotted EXE-6 21289 | -2/Protoforge | Spotted EXE-6 21348 | -2/Protoforge | Lost 5 allies 21359 | -2/Protoforge | Met 7R-MNS 21372 | -2/Protoforge | Spotted Striker 21375 | -2/Protoforge | Spotted Striker 21460 | -2/Protoforge | Spotted Hotshot 21460 | -2/Protoforge | Spotted Hotshot 21491 | -2/Protoforge | Spotted Hotshot 21496 | -2/Protoforge | Lost 17 allies 21515 | -2/Protoforge | Spotted Striker 21516 | -2/Protoforge | Spotted Executioner 21545 | -2/Protoforge | Spotted Executioner 21553 | -2/Protoforge | Spotted Executioner 21579 | -2/Protoforge | Found Exp. Targeting Computer 21581 | -2/Protoforge | Found Exp. Core Analyzer 21598 | -2/Protoforge | Spotted Executioner 21598 | -2/Protoforge | Spotted Striker 21610 | -2/Protoforge | Destroyed Hotshot 21610 | -2/Protoforge | Destroyed Hotshot 21612 | -2/Protoforge | Destroyed Hotshot 21625 | -2/Protoforge | Build established: Scavenger-Mutant 21648 | -2/Protoforge | Destroyed Executioner 21658 | -2/Protoforge | Spotted Executioner 21664 | -2/Protoforge | Destroyed Executioner 21665 | -2/Protoforge | Spotted Executioner 21690 | -2/Protoforge | Spotted Striker 21694 | -2/Protoforge | Spotted Striker 21703 | -2/Protoforge | Destroyed 21 combat bots 21756 | -2/Protoforge | Lost 33 allies 21757 | -2/Protoforge | Spotted Executioner 21763 | -2/Protoforge | Spotted Striker 21763 | -2/Protoforge | Spotted Striker 21764 | -2/Protoforge | Spotted Striker 21769 | -2/Protoforge | Destroyed Striker 21774 | -2/Protoforge | P-80 Master assimilated allied 7K-URV(E) 21790 | -2/Protoforge | Spotted Overlord 21793 | -2/Protoforge | Spotted Striker 21794 | -2/Protoforge | Spotted Striker 21803 | -2/Protoforge | P-80 Master assimilated allied 02F84-D 21806 | -2/Protoforge | Spotted EXE-6 21807 | -2/Protoforge | Core integrity fell below 50% 21810 | -2/Protoforge | Warped through subspace 21819 | -2/Protoforge | Found Prototype Ballistic Gun 21819 | -2/Protoforge | Identified Cep. XC Strikerail 21835 | -2/Protoforge | Lost 8 allies 21839 | -2/Protoforge | Lost 5 parts (2n2u1w) 21879 | -2/Protoforge | Core integrity fell below 20% 21881 | -2/Protoforge | Destroyed by Superfortress with Concept Plasma Driver Last Messages --------------- 21819_ 0bP_NET: Lugger 002 inbound, all units not involved in other operations escort to target. 21819_ Acquired Prototype Ballistic Gun. 21819_ Identified Cep. XC Strikerail. 21824_ 0bP_NET: Lugger 047 inbound, all units not involved in other operations escort to target. 21865_ Dropped Lrg. Storage Unit. 21865_ Acquired Lrg. Storage Unit. 21867_ Acquired Prototype Leg. 21867_ Identified Exp. VSS Leg. 21869_ Dropped Exp. VSS Leg. 21874_ Railslug penetrates C-65 Expert. 21874_ C-65 Expert knocked back. 21874_ Impulse Thruster Array destroyed. 21878_ Penetrated by Plasma Slug. 21878_ Railslug penetrates Machine. 21878_ Machine disabled. 21878_ Railslug penetrates Machine. 21881_ Plasma Slug penetrates Superfortress Research. 21881_ Superfortress Research disabled. Map ----- +----------------------------------------------------+ | ?????????????????????????????????????????????????? | | ?????????????????????????????????????????????????? | | ?????????????????????????????????????????????????? | | ?????????????????????????????????????????????????? | | ?????????????????????????????????????????????????? | | ?????????????????????????????????????????????????? | | ?????????????????????????????????????????????????? | | ?????????????????????????????????????????????????? | | ?????????????????????????????????????????????????? | | ?????????????????????????????????????????????????? | | ?????????????????????????????????????????????????? | | ?????????????????????????????????????????????????? | | ?????????????????????????????????????????????????? | | ?????????????????????????????????????????????????? | | ?????????????????????????????????????????????????? | | ?????????????????????????????????????? ??????????? | | ????????????????????????????????????? #?????????? | | ??????????????????????????????????? #?????????? | | ?????????????????????????????????? #?????????? | | ????????????????????????????????? #??????????? | | ?????????????????????##########? ####???????? | | ?????????????????????########## ###????????? | | ?????????????????????##"""""""" """""??????? | | ##?########?########?## """" """"?????? | | ##?########?########?#; "" ?????? | | #####""""#####""""####; @ "" ?????? | | ##### ===#####[[[[####; c #??? | | ?? | | FFF ??? | | FFF ??? | | FFF ??? | | & ???? | | ???? | | ##### ==##### ///##### ???? | | #####""""#####""""#####""""""""""""""""""""""????? | | ##?########?########?##""""""""""""""""""""??????? | | ##?########?########?##"""""""""""""""""?????????? | | ?????????????????????####################????????? | | ?????????????????????#####################???????? | | ?????????????????????????????????????????????????? | | ###??????????????????????????????????????????????? | | ###???????????????????????????????????############ | | ?##???????????????????????????????????# | | ?##???????????????????????????????????# "" "" | | ?##???????????????????????????????????# """" " | | ?##???????????????????????????????????# "" " "" | | ?##???????????????????????????????????# """ | | ?##???????????????????????????????????# "" | | ?##???????????????????????????????????# " "" | | ?###????????############??????????????# "" " | +----------------------------------------------------+ Best States ------------- Heat Dissipation 157 Energy Generation 49 Energy Capacity 750 Matter Stores 300 Matter Capacity 300 Sight Range 23 Robot Scan Range 16 Terrain Scan Density 10 Power Amplification 30 Additional Mass Support 12 Base Temperature (-) 100 Armor Coverage 225 Evasion (%) 65 Targeting Accuracy 12 Melee Accuracy 8 Launcher Accuracy 20 Core Analysis 8 Armor Integrity Analysis 50 Recoil Reduction 4 Energy Filtering 50 Offensive Hacking 22 Defensive Hacking 10 Item Schematics ----------------- Imp. Medium Armor Plating | -8/Recycling | Hacked Huge Storage Unit | -8/Recycling | Hacked Imp. Cooling System | -8/Recycling | Hacked Imp. Launcher Guidance Computer | -6/Extension | Hacked Adv. Hardlight Generator | -6/Extension | Hacked Robot Schematics ------------------ T-07 Excavator | -8/Recycling | Hacked Fabricated ------------ Nothing Repaired ---------- Lgt. Treads | 39% | -10/Materials Nuclear Core | 9% | -9/Materials Alien Tech Used ----------------- High-powered Transdimensional Reconstructor Achievements -------------- Executioner Challenges ------------ None Game ------ Seed AlloyMicroNanovents Manual? 0 Play Time 03:44:55 Cumulative 386.6 hours Start 2025.07.19 @ 18:39:17 End 2025.07.19 @ 22:49:27 Sessions 1 Manual Loads 0 Difficulty Rogue Special Mode None Game No. 257 Rogue 257 Adventurer 0 Explorer 0 Win Type - Total 27 Types 21/0/4/2/0/0/0/0/0/0 Lore% 91 Gallery% 82 Achievement% 68 Wizard Run 0 Options --------- Layout 0 ASCII 1 Keyboard 1 Movement Arrows Keybinds 0 Fullscreen 2 Font 18/Terminus Map View 76x50 Zoom Use 0% Tactical HUD 1 Map Filters NONE Filters NONE Steam 1 RUN: 5431002d-957f-4bdd-bf48-902220fe698d